bitfinex/quotes_ETHUSD_20260313
["timestamp","ask_amount","ask_price","bid_price","bid_amount"]
[1773410700582,6.07266472,2187.9,2186.8,6.73464159]
[1773410700778,6.07266472,2187.9,2186.8,8.89882705]
[1773410700979,7.21531734,2187.9,2186.9,5.04615654]
[1773410701381,6.07266472,2187.9,2187.0,1.14311842]
[1773410701582,0.002,2187.3,2187.0,1.14311842]
[1773410701770,0.002,2187.5,2187.0,1.14311842]
[1773410701956,0.557,2187.8,2187.0,6.18927496]
[1773410702365,6.07266472,2187.7,2187.0,1.14311842]
[1773410702561,6.07266472,2187.7,2186.8,1.14318086]
[1773410702792,6.07266472,2187.7,2186.5,4.57350754]
[1773410702982,6.62766472,2187.7,2186.7,1.68848505]
[1773410703288,1.69970889,2187.8,2186.7,1.68848505]
[1773410703289,0.557,2187.8,2187.0,1.68848505]
[1773410703460,2.777,2188.0,2187.0,6.73464159]
[1773410703660,2.777,2188.0,2187.0,8.89882705]
[1773410704086,3.332,2188.0,2187.0,8.89882705]
[1773410704285,3.332,2188.0,2187.0,6.73464159]
[1773410704491,2.22,2188.0,2187.1,5.04615654]
[1773410704692,0.555,2188.4,2187.8,1.68848505]
[1773410705189,1.11,2188.4,2187.5,0.065536]
[1773410705395,1.11,2188.4,2187.6,1.1428049]
[1773410706132,1e-08,2188.5,2187.7,6.73464159]
[1773410706325,1e-08,2188.5,2187.7,5.04615654]
[1773410706527,1e-08,2188.5,2187.9,5.04615654]
[1773410706822,2.775,2188.8,2188.1,1.68848505]
[1773410707324,2.775,2188.8,2187.9,5.04615654]
[1773410707325,0.555,2188.8,2188.0,3.37268546]
[1773410707633,6.07266472,2188.7,2187.7,1.36611219]
[1773410707918,0.555,2188.8,2188.0,0.065536]
[1773410708288,1.11,2188.8,2188.0,0.065536]
[1773410709022,8.32484571,2188.8,2187.8,4.5707618]
[1773410709197,6.07266472,2188.7,2187.8,1.14270042]
[1773410709521,6.62766472,2188.7,2187.8,1.14270042]
[1773410709818,7.76991201,2188.7,2187.8,1.14270042]
[1773410709987,7.76991201,2188.7,2187.4,10.8262909]
[1773410709988,6.07266472,2188.6,2187.1,6.7362413]
[1773410710192,6.07266472,2188.6,2187.2,1.14301389]
[1773410710418,6.62766472,2188.6,2187.3,0.04571846]
[1773410710596,6.62766472,2188.6,2187.3,1.73420351]
[1773410711512,7.18266472,2188.6,2187.3,1.73420351]
[1773410711820,6.07266472,2188.4,2187.4,1.14290939]
[1773410712194,6.07266472,2188.4,2187.5,0.04571428]
[1773410712703,6.62766472,2188.4,2187.5,0.04571428]
[1773410713824,7.18266472,2188.4,2187.5,0.04571428]
[1773410714021,7.18266472,2188.4,2187.6,1.1428049]
[1773410714235,7.18266472,2188.4,2187.7,0.0457101]
[1773410714403,8.32505473,2188.4,2187.7,0.0457101]
[1773410714604,7.18266472,2188.4,2187.6,1.1428049]
[1773410714819,7.73766472,2188.4,2187.6,1.1428049]
[1773410715111,1.14433769,2188.5,2187.7,6.28521048]
[1773410715112,0.002,2188.5,2187.7,6.28521048]
[1773410715703,0.002,2188.5,2187.8,0.065536]
[1773410715906,0.557,2188.5,2187.9,6.2852063]
[1773410716138,1.11,2188.6,2188.0,1.14259597]
[1773410716307,1.11,2188.6,2188.1,0.04570175]
[1773410716508,0.002,2189.0,2188.1,6.28520213]
[1773410717035,1.69907432,2189.0,2188.1,6.28520213]
[1773410717352,6.07266472,2188.9,2188.0,1.14259597]
[1773410717936,6.07266472,2188.9,2188.1,0.04570175]
[1773410718131,1.14217836,2188.8,2188.2,1.14249154]
[1773410718331,1.14217836,2188.8,2188.1,1.18823469]
[1773410718636,1.14217836,2188.8,2188.1,1.14253294]
[1773410719033,7.76982359,2188.9,2188.2,0.04569966]
[1773410719216,6.62766472,2188.8,2188.1,1.14253294]
[1773410719420,6.62766472,2188.8,2188.1,1.18823469]
[1773410719616,0.555,2188.8,2188.1,1.18823469]
[1773410720337,0.557,2189.0,2188.3,6.23950038]
[1773410720519,7.7693913,2189.7,2188.3,6.28519795]
[1773410720714,6.62766472,2189.7,2188.6,7.92798543]
[1773410721353,1.11,2189.7,2188.7,6.19762857]
[1773410721868,1.112,2190.0,2189.1,0.065536]
[1773410722032,1e-08,2190.0,2189.1,0.065536]
[1773410722236,7.42014658,2190.4,2189.6,1.14176105]
[1773410722461,7.42014658,2190.4,2189.3,4.56766891]
[1773410722462,0.555,2190.0,2189.3,1.1419175]
[1773410723068,6.27880239,2190.4,2189.3,7.27401007]
[1773410723380,1e-08,2190.4,2189.3,7.27401007]
[1773410723558,6.83380239,2190.4,2189.3,1.1419175]
[1773410723942,0.55500001,2190.4,2189.3,7.27401007]
[1773410724269,1.14139615,2190.3,2189.2,4.56767003]
[1773410724480,1.69639615,2190.3,2189.2,4.56767003]
[1773410725150,1.69639615,2190.3,2189.2,10.6997626]
[1773410725673,2.25139615,2190.3,2189.2,10.6997626]
[1773410726034,1.11,2190.3,2189.3,6.13209257]
[1773410726234,1.11,2190.3,2189.4,1.14186535]
[1773410726438,2.25140567,2190.3,2189.4,1.14186535]
[1773410726660,2.80640567,2190.3,2189.4,1.14186535]
[1773410727356,9.08520805,2190.3,2189.4,1.14186535]
[1773410727672,6.27880238,2190.2,2188.8,1.14217836]
[1773410728043,6.27880238,2190.2,2188.9,6.17777761]
[1773410728349,7.42028439,2190.2,2189.0,8.96265162]
[1773410728557,0.002,2190.1,2189.1,0.04568087]
[1773410728763,0.557,2190.1,2189.1,0.04568087]
[1773410729270,0.557,2190.1,2189.3,7.82057762]
[1773410729655,0.557,2190.1,2189.3,6.13209257]
[1773410729842,1.112,2190.1,2189.1,0.065536]
[1773410730049,1.112,2190.1,2189.1,6.19762857]
[1773410730243,2.25351085,2190.1,2189.3,1.1419175]
[1773410730568,1.112,2190.1,2189.3,1.1419175]
[1773410730773,2.222,2190.3,2189.4,0.065536]
[1773410730972,0.555,2190.1,2189.3,1.1419175]
[1773410731266,0.555,2190.1,2189.4,0.04567461]
[1773410731477,0.555,2190.1,2189.3,1.36580049]
[1773410731689,0.555,2190.1,2189.4,0.04567461]
[1773410732146,1.11,2190.1,2189.4,0.04567461]
[1773410732368,2.25154325,2190.1,2189.4,1.14183562]
[1773410732665,6.27880238,2190.0,2189.2,1.444353]
[1773410733045,6.83380238,2190.0,2189.2,1.444353]
[1773410733260,6.83380238,2190.0,2189.3,0.0456767]
[1773410733679,6.83380238,2190.0,2189.2,1.444353]
[1773410734278,7.38880238,2190.0,2189.2,1.444353]
[1773410734589,7.42040701,2189.9,2189.2,0.16065535]
[1773410734950,7.42040701,2189.9,2188.9,1.1877765]
[1773410735188,0.555,2189.9,2189.0,7.82057762]
[1773410735346,0.555,2189.9,2189.1,6.17777344]
[1773410735885,0.555,2189.9,2189.1,6.13209257]
[1773410736454,1.11,2189.9,2189.1,6.13209257]
[1773410736682,2.25163355,2189.9,2189.2,1.18764844]
[1773410736848,1.11,2189.9,2189.2,1.18764844]
[1773410737050,1.11,2189.9,2189.2,7.31974101]
[1773410737360,1.665,2189.9,2189.2,7.31974101]
[1773410737764,2.80663082,2189.9,2189.2,7.27406223]
[1773410738068,2.80664474,2189.9,2188.8,10.70059729]
[1773410738272,2.80664474,2189.9,2188.8,7.27427093]
[1773410738579,9.64044712,2189.9,2188.9,0.04568504]
[1773410738755,9.64044712,2189.9,2188.9,1.18776349]
[1773410739779,10.19544712,2189.9,2188.9,1.18776349]
[1773410740795,10.75044712,2189.9,2188.9,1.14207845]
[1773410740959,4.47162994,2189.9,2189.0,0.04568296]
[1773410741168,4.47162994,2189.9,2189.0,6.17777553]
[1773410741169,3.33,2189.9,2189.0,6.17777553]
[1773410741367,3.33,2189.9,2189.0,6.13209257]
[1773410741563,3.33,2189.9,2189.1,6.13309257]
[1773410741763,3.887,2189.9,2189.1,6.13309257]
[1773410741952,3.887,2189.9,2189.2,6.17777135]
[1773410742590,1.11,2190.0,2189.3,6.13209257]
[1773410742888,1.665,2190.0,2189.4,7.27395792]
[1773410743092,1e-08,2190.1,2189.5,6.17776509]
[1773410743382,1e-08,2190.3,2189.5,6.13209257]
[1773410744962,0.55500001,2190.3,2189.6,1.14176105]
[1773410745162,0.55500001,2190.3,2189.3,1.1419175]
[1773410745461,6.83380239,2190.3,2189.3,1.1419175]
[1773410745969,7.38880239,2190.3,2189.3,1.1419175]
[1773410746761,1.14144826,2190.2,2189.3,1.1419175]
[1773410746960,1.14144826,2190.2,2189.3,7.33753659]
[1773410747284,1.69644826,2190.2,2189.3,7.33753659]
[1773410747446,7.55032278,2190.2,2189.3,1.1419175]
[1773410747647,5.85387452,2190.1,2189.3,1.1419175]
[1773410747852,5.85387452,2190.1,2189.1,0.001]
[1773410748073,5.85387452,2190.1,2189.1,1.14301859]
[1773410748295,6.40887452,2190.1,2189.1,0.001]
[1773410748455,6.40887452,2190.1,2188.9,0.001]
[1773410748851,5.85387452,2189.9,2188.9,0.001]
[1773410749156,5.85387452,2189.7,2188.9,0.001]
[1773410749583,0.555,2189.9,2188.9,0.04668504]
[1773410749957,0.555,2189.9,2188.9,6.24230413]
[1773410750375,1.11,2189.9,2188.9,6.19661909]
[1773410750570,1.11,2189.9,2189.0,0.04568296]
[1773410750791,1.14165677,2189.8,2189.1,1.14202183]
[1773410751360,1.69665677,2189.8,2189.1,1.14202183]
[1773410752491,2.25165677,2189.8,2188.9,1.14310244]
[1773410752990,6.12191207,2189.7,2188.9,0.001]
[1773410753500,6.67691207,2189.7,2188.9,0.001]
[1773410754557,7.23191207,2189.7,2188.9,0.001]
[1773410754999,6.12191207,2189.5,2189.3,0.001]
[1773410755301,6.12191207,2189.5,2188.9,0.001]
[1773410755503,6.12191207,2189.5,2189.0,0.001]
[1773410755700,6.67691207,2189.5,2188.8,0.2683674]
[1773410755898,6.67691207,2189.5,2188.6,0.001]
[1773410756101,6.67691207,2189.5,2188.8,0.001]
[1773410756304,6.12191207,2189.3,2188.6,0.001]
[1773410756807,6.67691207,2189.3,2188.6,0.001]
[1773410757002,6.12191207,2189.1,2188.6,0.001]
[1773410757902,6.12191207,2189.1,2188.4,0.26825826]
[1773410757903,6.67691207,2189.1,2188.4,0.26825826]
[1773410758083,6.67691207,2189.1,2188.4,1e-08]
[1773410758283,6.67691207,2189.1,2187.7,0.001]
[1773410758507,6.67691207,2189.1,2187.7,1.1894605]
[1773410758508,6.12191207,2189.0,2187.7,1.1894605]
[1773410758742,6.12191207,2189.0,2187.7,7.16073538]
[1773410758906,6.67691207,2189.0,2187.7,7.11502528]
[1773410759202,6.12191207,2188.8,2187.7,7.11502528]
[1773410759606,6.12191207,2188.8,2187.7,1.1437504]
[1773410759977,6.67691207,2188.8,2187.7,0.001]
[1773410760183,6.12191207,2188.7,2187.7,0.001]
[1773410761095,6.12191207,2188.5,2187.7,0.001]
[1773410761405,6.12191207,2188.5,2187.3,6.01699334]
[1773410762015,6.12191207,2188.5,2187.3,5.97127488]
[1773410762215,6.67691207,2188.5,2187.3,5.97127488]
[1773410762395,6.67691207,2188.5,2187.2,1.14401389]
[1773410762596,6.67691207,2188.5,2187.3,6.01699334]
[1773410762908,6.67691207,2188.5,2187.2,1.14401389]
[1773410763088,6.67691207,2188.5,2187.3,0.04571846]
[1773410763289,6.12191207,2188.3,2187.4,1.14290939]
[1773410763688,6.12191207,2188.3,2187.5,0.04571428]
[1773410764218,6.12191207,2188.3,2187.4,1.14290939]
[1773410764419,6.67691207,2188.3,2187.4,1.14290939]
[1773410764622,6.67691207,2188.3,2187.5,0.04571428]
[1773410764819,0.555,2188.3,2187.5,6.01698916]
[1773410764989,0.44258871,2188.3,2187.6,5.97127488]
[1773410765318,1e-08,2188.8,2188.1,5.97127488]
[1773410765522,1e-08,2188.8,2188.2,0.04569966]
[1773410765829,1e-08,2188.8,2188.2,6.01697454]
[1773410766033,1e-08,2188.8,2188.2,5.97127488]
[1773410766191,1e-08,2188.8,2188.0,1.14259597]
[1773410766517,0.55500001,2188.8,2188.1,0.04570175]
[1773410767612,1.11000001,2188.8,2188.0,0.04570383]
[1773410767817,1.11000001,2188.8,2188.0,6.24390878]
[1773410768119,2.25217964,2188.8,2188.0,6.19820495]
[1773410768420,1.11000001,2188.8,2188.2,0.001]
[1773410768625,2.80718872,2188.8,2188.2,0.001]
[1773410769141,2.80718872,2188.8,2187.7,0.001]
[1773410769142,6.12191207,2188.7,2187.7,0.001]
[1773410769419,6.12191207,2188.5,2187.7,0.001]
[1773410769929,6.67691207,2188.5,2187.2,1.14399225]
[1773410770427,6.67691207,2188.5,2187.2,0.001]
[1773410770722,7.23191207,2188.5,2187.2,1.14400865]
[1773410771331,7.23191207,2188.5,2187.3,0.04571846]
[1773410771534,7.2642992,2188.4,2187.4,1.14290939]
[1773410772025,7.2642992,2188.4,2187.5,0.04571428]
[1773410772026,1.69738713,2188.4,2187.5,0.04571428]
[1773410772189,1.69738713,2188.4,2187.3,7.11419754]
[1773410772190,1.69738713,2188.4,2187.4,6.01699125]
[1773410772393,0.555,2188.4,2187.4,5.97127488]
[1773410772597,6.67691207,2188.4,2187.3,2.82697968]
[1773410773137,7.23191207,2188.4,2187.3,8.79825456]
[1773410773692,2.25241862,2188.4,2187.4,5.97127488]
[1773410774017,1.665,2188.4,2187.6,5.97127488]
[1773410774222,2.80739789,2188.4,2187.6,5.97127488]
[1773410774387,2.80739789,2188.4,2187.3,8.79825456]
[1773410774787,8.92930996,2188.4,2187.3,7.11419754]
[1773410775225,6.12191207,2188.3,2187.3,7.11419754]
[1773410776034,1.14249154,2188.2,2187.3,1.14292266]
[1773410776194,6.12191207,2188.1,2187.2,1.14399852]
[1773410776393,6.12191207,2188.1,2187.2,1.14399417]
[1773410776593,6.12191207,2188.1,2187.3,0.04571846]
[1773410776888,1.69749154,2188.2,2187.3,6.01699334]
[1773410777088,1.69749154,2188.2,2187.2,1.14399417]
[1773410777318,2.25249154,2188.2,2187.3,6.01699334]
[1773410777534,1.11,2188.2,2187.4,5.97127488]
[1773410778291,1.665,2188.2,2187.5,1.14285714]
[1773410778793,2.80749698,2188.2,2187.5,1.14285714]
[1773410779007,1.665,2188.2,2187.6,0.04571219]
[1773410779410,1.665,2188.2,2187.6,5.97127488]
[1773410779411,2.22,2188.2,2187.6,5.97127488]
[1773410780234,2.22,2188.4,2187.7,1.14275266]
[1773410780545,2.14107824,2188.4,2187.9,5.97127488]
[1773410780699,1.11,2188.5,2188.0,0.04570383]
[1773410780896,1.11,2188.5,2187.9,6.01698079]
[1773410781113,2.80718124,2188.8,2187.9,6.01698079]
[1773410781114,1e-08,2188.8,2187.9,6.01698079]
[1773410781402,0.002,2188.3,2188.0,7.87997359]
[1773410781737,0.557,2188.3,2188.1,6.19591657]
[1773410781937,1e-08,2188.8,2188.1,2.16997444]
[1773410782099,1e-08,2188.8,2188.2,6.19591657]
[1773410782298,0.555,2189.1,2188.4,7.3383037]
[1773410782603,0.002,2188.8,2188.4,7.3383037]
[1773410782831,0.555,2189.3,2188.7,6.19591657]
[1773410783644,0.555,2189.3,2188.4,3.31236157]
[1773410783819,1.11,2189.3,2188.4,3.31236157]
[1773410784225,1.11,2189.3,2188.4,9.50827814]
[1773410784931,1.665,2189.3,2188.4,9.50827814]
[1773410785627,2.80692275,2189.3,2188.4,7.3383037]
[1773410786017,2.22,2189.3,2188.5,6.19591657]
[1773410786218,2.25171456,2189.7,2188.6,7.87997359]
[1773410786525,1.11,2189.7,2188.7,7.33814711]
[1773410786726,2.25371052,2189.7,2188.7,7.33814711]
[1773410786926,1.112,2189.7,2188.7,7.33814711]
[1773410787125,1.665,2189.7,2188.7,7.33814711]
[1773410787299,2.80670941,2189.7,2188.7,7.33814711]
[1773410787503,2.80870941,2189.7,2188.7,7.33814711]
[1773410787716,2.80670941,2189.7,2188.7,7.33814711]
[1773410788330,7.06119936,2189.5,2188.5,4.56892219]
[1773410788748,7.06119936,2189.5,2188.5,4.61461558]
[1773410788899,2.22,2189.7,2188.6,7.87997359]
[1773410789098,3.36172481,2189.7,2188.6,7.87997359]
[1773410789328,5.91938617,2189.6,2188.5,4.56892219]
[1773410789628,5.92138617,2189.4,2188.5,4.61461558]
[1773410789801,5.91938617,2189.4,2188.5,4.61461558]
[1773410789999,0.002,2189.3,2188.5,4.61461558]
[1773410790228,0.557,2189.3,2188.5,4.61461558]
[1773410790536,1.14396966,2189.2,2188.5,4.61461558]
[1773410790839,5.91938617,2189.1,2188.2,1.14249154]
[1773410791027,0.002,2188.9,2188.2,1.14249154]
[1773410791203,5.91938617,2188.9,2188.2,0.04569966]
[1773410791402,6.47438617,2188.9,2188.2,0.04569966]
[1773410791907,0.04569339,2188.8,2188.1,1.33575917]
[1773410792245,0.04569339,2188.8,2188.2,0.04569966]
[1773410792539,0.555,2188.8,2188.3,7.3383559]
[1773410792745,0.555,2189.3,2188.7,6.19591657]
[1773410793109,1e-08,2189.6,2188.7,6.19591657]
[1773410793308,1e-08,2189.9,2189.0,6.19591657]
[1773410793512,0.55500001,2189.9,2189.0,6.19591657]
[1773410793729,0.55700001,2189.9,2189.0,6.19591657]
[1773410794118,0.55500001,2189.9,2189.2,7.87997359]
[1773410794327,0.48501,2190.1,2189.4,6.19591657]
[1773410794636,0.555,2190.1,2189.8,6.19591657]
[1773410795008,0.555,2190.1,2189.6,0.065536]
[1773410795335,1e-08,2190.4,2189.7,1.68405702]
[1773410795637,1e-08,2190.5,2189.8,6.19591657]
[1773410796510,1e-08,2190.5,2189.9,1.14160463]
[1773410796730,0.55700001,2190.5,2189.9,1.14160463]
[1773410797033,0.55500001,2190.5,2189.9,1.14160463]
[1773410797244,0.002,2190.4,2189.9,1.14160463]
[1773410797544,0.55500001,2190.5,2189.9,1.14160463]
[1773410797710,0.002,2190.4,2189.9,1.14160463]
[1773410798126,1.11000001,2190.5,2189.9,1.14160463]
[1773410798443,0.002,2190.3,2189.6,4.5668423]
[1773410798731,0.002,2190.4,2189.5,10.76315422]
[1773410798935,0.555,2190.3,2189.5,10.76315422]
[1773410799435,0.555,2190.3,2189.5,1.14181319]
[1773410799731,0.555,2190.3,2189.5,7.38340228]
[1773410800044,1.11,2190.3,2189.5,7.38340228]
[1773410800208,1.11000001,2190.5,2189.5,7.38340228]
[1773410800411,2.25329611,2190.5,2189.5,7.33772976]
[1773410800606,2.25129611,2190.5,2189.5,7.33772976]
[1773410800806,0.002,2190.4,2189.5,7.33772976]
[1773410801115,0.557,2190.4,2189.5,7.33772976]
[1773410801316,0.002,2190.3,2189.5,7.33772976]
[1773410801516,0.002,2190.3,2189.6,0.04567044]
[1773410801832,0.002,2190.2,2189.5,7.33772976]
[1773410802032,0.555,2190.4,2189.5,7.33772976]
[1773410802234,0.555,2190.2,2189.5,7.33772976]
[1773410802457,1.11000001,2190.5,2189.8,6.19591657]
[1773410802624,1.11000001,2190.5,2189.9,7.547251]
[1773410803226,1.11000001,2190.5,2190.2,6.19591657]
[1773410803227,0.555,2190.5,2190.2,6.19591657]
[1773410803456,0.30427628,2190.5,2190.2,6.19591657]
[1773410803808,2.649606,2191.7,2190.2,6.19591657]
[1773410804126,4.56291093,2191.6,2190.2,6.19591657]
[1773410804327,5.91938617,2191.5,2190.2,6.19591657]
[1773410804542,0.002,2191.3,2190.6,1.14123984]
[1773410804748,1.14074563,2191.6,2190.6,7.33715641]
[1773410804918,0.002,2191.3,2190.6,7.33715641]
[1773410805312,0.555,2191.3,2190.6,7.33715641]
[1773410805558,0.48301,2191.3,2190.8,7.87997359]
[1773410805709,0.555,2191.7,2190.9,6.19591657]
[1773410806418,1.112,2191.7,2190.9,6.19591657]
[1773410806626,1.112,2191.7,2191.1,1.14097941]
[1773410806918,0.002,2191.4,2191.1,1.14097941]
[1773410807423,1.11,2191.7,2191.1,1.38774067]
[1773410807629,1.112,2191.7,2191.2,0.24661567]
[1773410807829,1.11,2191.7,2191.2,0.24661567]
[1773410808019,1e-08,2191.7,2191.2,0.24661567]
[1773410808755,0.55500001,2191.7,2191.3,1.14087527]
[1773410809118,1.14049477,2192.1,2191.3,1.14087527]
[1773410809119,1.140475,2192.1,2191.3,1.14087527]
[1773410809646,0.555,2192.1,2191.3,1.14087527]
[1773410809850,0.555,2192.3,2191.7,1.68048367]
[1773410810051,0.555,2192.3,2191.3,7.15471805]
[1773410810052,1.69538219,2192.3,2191.3,7.08918205]
[1773410810426,0.002,2191.5,2191.2,1.38750573]
[1773410810632,0.555,2191.5,2191.2,0.24661567]
[1773410811441,1.6957738,2191.5,2190.7,4.56466804]
[1773410811748,1.11,2191.5,2190.9,1.68048367]
[1773410811937,1.11,2191.5,2191.0,0.27900032]
[1773410812318,1.11,2191.5,2191.0,0.32464157]
[1773410812658,1.01269501,2191.5,2191.3,1.68048367]
[1773410812953,0.555,2191.5,2191.3,2.8213177]
[1773410813156,0.002,2191.7,2191.3,1.14083403]
[1773410813454,0.002,2191.7,2191.2,0.27897485]
[1773410813858,0.557,2191.7,2191.2,1.41988709]
[1773410814149,0.557,2191.7,2191.2,0.27897485]
[1773410814348,0.557,2191.7,2191.2,1.41989254]
[1773410814555,0.557,2191.7,2191.2,0.27897485]
[1773410814756,1.1407191,2191.6,2191.2,0.18166986]
[1773410815056,1.6957191,2191.6,2191.2,0.18166986]
[1773410815448,6.13887633,2191.5,2191.2,0.18166986]
[1773410815631,6.13887633,2191.5,2190.6,1.18685731]
[1773410815828,6.13887633,2191.5,2190.7,0.18166986]
[1773410816144,0.555,2191.5,2190.8,0.04564542]
[1773410816632,0.555,2191.6,2190.9,0.18166986]
[1773410816832,0.555,2191.6,2191.0,4.56391766]
[1773410817027,1.69574188,2191.6,2190.9,1.32272204]
[1773410817262,6.13887633,2191.5,2190.5,1.18694361]
[1773410817458,6.13887633,2191.5,2190.5,1.36861347]
[1773410817664,6.13887633,2191.5,2190.5,7.77084748]
[1773410817873,1.11,2191.6,2190.7,1.68048367]
[1773410818069,2.2507227,2191.6,2190.8,0.04564542]
[1773410818270,2.80573224,2191.6,2190.7,1.68048367]
[1773410818657,1.665,2191.6,2190.7,1.68048367]
[1773410818846,1.665,2191.6,2190.8,1.36845093]
[1773410819051,1.665,2191.6,2190.8,1.32280551]
[1773410819366,2.22,2191.6,2190.9,0.04564334]
[1773410820064,6.13887633,2191.5,2190.8,1.14113565]
[1773410820265,6.13887633,2191.5,2190.7,0.0456475]
[1773410820438,6.69387633,2191.5,2190.5,0.04565167]
[1773410820642,6.69387633,2191.5,2190.4,4.56537057]
[1773410820950,7.83468637,2191.5,2190.5,0.04565167]
[1773410821166,7.83468637,2191.5,2190.4,0.04565376]
[1773410821333,7.83468637,2191.5,2190.3,1.14134404]
[1773410821334,0.555,2191.5,2190.8,1.68048367]
[1773410821534,2.25077723,2191.5,2190.4,6.40223401]
[1773410821746,2.25078121,2191.5,2190.5,6.6519664]
[1773410821973,2.25078121,2191.5,2190.6,0.24972099]
[1773410822139,6.13887633,2191.4,2190.6,0.24972099]
[1773410822549,6.69387633,2191.4,2190.6,0.24972099]
[1773410822736,1.14087527,2191.3,2190.7,1.18683524]
[1773410822937,7.2797516,2191.3,2190.6,0.24972099]
[1773410823255,7.2797516,2191.3,2191.0,0.001]
[1773410823457,6.13887633,2191.3,2191.0,0.001]
[1773410823656,6.69387633,2191.3,2190.6,1.39095669]
[1773410823848,0.555,2191.4,2190.9,1.68048367]
[1773410824042,6.13887633,2191.3,2190.8,0.001]
[1773410824663,6.69387633,2191.3,2190.8,0.001]
[1773410825157,1.14092734,2191.2,2190.8,0.001]
[1773410825366,7.27980367,2191.2,2190.7,0.1945132]
[1773410825772,6.13887633,2191.1,2190.5,0.001]
[1773410825937,6.13887633,2191.1,2189.8,1.14163137]
[1773410826573,6.13887633,2191.1,2189.7,1.14166955]
[1773410826771,6.13887633,2191.1,2189.3,1.1419175]
[1773410827067,6.13887633,2190.9,2189.5,7.5440472]
[1773410827451,6.13887633,2190.9,2189.7,8.08271768]
[1773410827654,6.13887633,2190.9,2189.8,6.40223401]
[1773410827854,6.69387633,2190.9,2189.8,6.40223401]
[1773410828271,6.69387633,2190.9,2189.5,7.5440472]
[1773410828440,6.69387633,2190.9,2189.2,2.1471217]
[1773410828637,6.13887633,2190.7,2189.3,1.1419175]
[1773410829074,6.13887633,2190.5,2189.2,4.56774026]
[1773410829265,6.13887633,2190.5,2189.1,1.14200701]
[1773410829743,6.13887633,2190.5,2188.9,1.14209133]
[1773410830077,6.13887633,2190.2,2188.8,1.14214279]
[1773410831181,6.13887633,2190.0,2188.7,6.40223401]
[1773410831680,6.13887633,2189.8,2188.5,4.79307936]
[1773410832379,6.69387633,2189.8,2188.5,4.79307936]
[1773410832597,6.69387633,2189.8,2188.8,6.40223401]
[1773410832598,0.555,2189.8,2188.8,6.40223401]
[1773410832753,0.555,2189.8,2188.9,0.02286021]
[1773410833080,0.555,2189.8,2189.0,1.142074]
[1773410833377,2.25166175,2189.8,2189.0,1.142074]
[1773410833757,8.39053808,2189.8,2189.0,1.142074]
[1773410834479,8.94553808,2189.8,2189.0,1.142074]
[1773410835189,2.80666175,2189.8,2188.9,6.40223401]
[1773410835386,3.36166175,2189.8,2188.9,6.40223401]
[1773410835563,2.22,2189.8,2188.9,6.40223401]
[1773410835761,2.22,2189.8,2188.8,4.56829602]
[1773410835965,3.36168844,2189.8,2188.8,4.56829602]
[1773410836161,2.22,2189.8,2188.9,0.04568504]
[1773410836377,2.1269098,2189.8,2189.2,6.40223401]
[1773410836578,2.6819098,2189.8,2189.3,6.44791071]
[1773410836752,1.69645423,2190.2,2189.3,6.44791071]
[1773410837081,1.69644982,2190.2,2189.4,1.14186535]
[1773410837483,0.555,2190.2,2189.4,1.14186535]
[1773410837775,2.25144844,2190.2,2189.4,1.14186535]
[1773410837989,2.25144869,2190.2,2189.4,1.14186535]
[1773410838151,2.2514484,2190.2,2189.4,1.14186535]
[1773410838569,1.11,2190.2,2189.4,1.14186535]
[1773410838761,2.80644974,2190.2,2189.4,1.14186535]
[1773410838973,1.665,2190.2,2189.4,1.14186535]
[1773410839350,2.80645031,2190.2,2189.3,4.5674614]
[1773410839589,1.665,2190.2,2189.3,4.5674614]
[1773410839754,2.22,2190.2,2189.3,4.5674614]
[1773410840052,9.50033572,2190.2,2189.2,0.001]
[1773410840256,6.13887633,2190.1,2189.2,0.001]
[1773410840552,6.13887633,2190.1,2189.2,1.1429618]
[1773410840765,6.69387633,2190.1,2189.2,1.1429618]
[1773410841478,5.96645215,2189.9,2189.3,0.0456767]
[1773410841677,5.96645215,2189.9,2189.2,0.001]
[1773410841874,6.52145215,2189.9,2189.2,0.001]
[1773410843086,7.07645215,2189.9,2189.2,0.001]
[1773410843274,1.14165677,2189.8,2189.2,0.001]
[1773410843674,7.10810892,2189.8,2189.0,0.001]
[1773410843985,7.10810892,2189.8,2188.7,0.001]
[1773410844185,5.96645215,2189.7,2188.7,0.001]
[1773410844367,0.555,2189.8,2188.7,6.1551169]
[1773410844780,0.555,2189.8,2188.9,7.83460057]
[1773410845168,1.11,2189.8,2189.0,6.1541169]
[1773410845504,1.11,2189.8,2189.1,7.29613873]
[1773410845791,1.11,2189.9,2189.4,6.1541169]
[1773410845953,0.555,2190.1,2189.6,1.68048367]
[1773410846157,0.555,2190.5,2189.7,6.1541169]
[1773410846355,0.555,2190.1,2189.7,6.1541169]
[1773410847392,1.11,2190.1,2189.8,1.14165677]
[1773410848181,0.555,2190.5,2189.8,1.14165677]
[1773410848379,0.55500001,2190.5,2189.8,1.14165677]
[1773410849185,0.55500001,2190.5,2189.8,7.29577367]
[1773410849388,7.66276486,2190.5,2189.5,1.14176105]
[1773410849698,5.96645215,2190.4,2189.1,4.56797562]
[1773410849865,5.96645215,2190.4,2189.2,0.04567878]
[1773410850464,5.96645215,2190.4,2189.1,1.14202183]
[1773410850677,6.52145215,2190.4,2189.1,1.14202183]
[1773410850875,6.52145215,2190.4,2189.2,0.04567878]
[1773410851191,6.52145215,2190.4,2189.1,1.14202183]
[1773410851388,5.96645215,2190.2,2188.9,1.14212618]
[1773410851590,6.52145215,2190.2,2188.9,1.14212618]
[1773410851892,6.52145215,2190.2,2189.6,0.001]
[1773410852056,6.52145215,2190.2,2188.9,1.14212618]
[1773410852459,6.52145215,2190.2,2188.8,2.64814633]
[1773410852667,7.07645215,2190.2,2189.4,0.001]
[1773410853575,5.96645215,2190.0,2189.4,0.001]
[1773410854195,6.52145215,2190.0,2189.4,0.001]
[1773410855276,7.07645215,2190.0,2189.4,0.001]
[1773410855600,7.10805678,2189.9,2189.4,0.001]
[1773410856382,7.10805678,2189.9,2189.4,7.83560057]
[1773410856383,0.555,2189.9,2189.4,7.83560057]
[1773410856580,0.555,2189.9,2189.5,0.04567252]
[1773410856799,1.11,2190.2,2189.5,0.04567252]
[1773410857376,1.665,2190.2,2189.5,0.04567252]
[1773410857691,2.80648893,2190.2,2189.5,1.18748548]
[1773410857882,5.96645215,2190.1,2189.4,0.001]